bitfinex-derivatives/quotes_BTCF0:USTF0_20250114
["timestamp","ask_amount","ask_price","bid_price","bid_amount"]
[1736848048856,0.051513,97086.0,97085.0,0.25282186]
[1736848049565,0.051513,97086.0,97072.0,0.3701]
[1736848049767,0.05152,97073.0,97072.0,0.3701]
[1736848051169,0.05152,97073.0,97072.0,0.3711]
[1736848051760,0.06306047,97073.0,97072.0,0.001]
[1736848051961,0.007,97073.0,97072.0,0.3711]
[1736848052372,0.15298389,97082.0,97072.0,0.3721]
[1736848052566,0.15298389,97082.0,97080.0,0.3608]
[1736848052567,0.051516,97081.0,97080.0,0.3608]
[1736848052772,0.051516,97081.0,97072.0,0.3711]
[1736848053066,0.0714071,97082.0,97072.0,0.3721]
[1736848053471,0.0724071,97082.0,97077.0,0.3608]
[1736848053666,0.051517,97078.0,97077.0,0.3608]
[1736848053967,0.15298389,97087.0,97077.0,0.3608]
[1736848054170,0.051517,97078.0,97077.0,0.3608]
[1736848054966,0.0628807,97078.0,97077.0,0.3608]
[1736848055566,0.0628807,97078.0,97077.0,0.3618]
[1736848055972,0.0628807,97078.0,97077.0,0.337069]
[1736848057072,0.0638807,97078.0,97058.0,0.3608]
[1736848057276,0.051527,97059.0,97058.0,0.3608]
[1736848058162,0.3608,97063.0,97050.0,0.00045]
[1736848058466,0.15298389,97060.0,97050.0,0.00045]
[1736848058874,0.051532,97051.0,97050.0,0.00045]
[1736848059970,0.0628436,97051.0,97050.0,0.00045]
[1736848060376,0.4236436,97051.0,97050.0,0.00045]
[1736848060676,0.05154,97036.0,97028.0,0.2608]
[1736848060977,0.05155,97017.0,97015.0,0.0015462]
[1736848062178,0.05155,97017.0,97015.0,0.0055462]
[1736848062374,0.05155,97017.0,97015.0,0.004]
[1736848062585,0.05155,97017.0,97003.0,0.3608]
[1736848062876,0.051556,97005.0,97003.0,0.3608]
[1736848063269,0.051556,97005.0,96988.0,0.3701]
[1736848063473,0.051561,96996.0,96995.0,0.3608]
[1736848064564,0.051564,96991.0,96989.0,0.3701]
[1736848064771,0.051563,96993.0,96990.0,0.3608]
[1736848064976,0.30596778,97000.0,96990.0,0.3618]
[1736848065177,0.051563,96992.0,96990.0,0.3608]
[1736848066176,0.051572,96975.0,96973.0,0.3608]
[1736848068278,0.051572,96975.0,96969.0,0.3701]
[1736848068483,0.051578,96964.0,96963.0,0.3608]
[1736848068675,0.002,96975.0,96963.0,0.3608]
[1736848068871,0.15298389,96990.0,96974.0,0.3608]
[1736848069075,0.15298389,97000.0,96982.0,0.3608]
[1736848069279,0.051568,96984.0,96982.0,0.3608]
[1736848069876,0.051572,96975.0,96974.0,0.3608]
[1736848071573,0.051572,96975.0,96974.0,0.3618]
[1736848071979,0.051572,96975.0,96974.0,0.3608]
[1736848072175,0.055572,96975.0,96974.0,0.3618]
[1736848073087,0.15450518,98302.0,96974.0,0.7329]
[1736848073088,0.051556,97005.0,96974.0,0.7329]
[1736848073284,0.20453689,97010.0,96991.0,0.3608]
[1736848073484,0.051563,96993.0,96991.0,0.3608]
[1736848073783,0.051568,96983.0,96982.0,0.3608]
[1736848075081,0.051562,96993.0,96982.0,1.8618]
[1736848075283,0.051562,96993.0,96991.0,0.3608]
[1736848075585,0.05156,96999.0,96991.0,0.3608]
[1736848075780,0.05156,96999.0,96992.0,0.1571]
[1736848075981,0.05156,96998.0,96992.0,0.1571]
[1736848076184,0.05156,96998.0,96992.0,0.5272]
[1736848076490,0.05156,96997.0,96992.0,0.5272]
[1736848076681,0.05156,96997.0,96993.0,0.3701]
[1736848076883,0.05310912,96995.0,96993.0,0.3701]
[1736848077078,0.606145,97027.0,96994.0,0.3711]
[1736848077383,0.051549,97019.0,97010.0,0.3608]
[1736848077584,0.15298389,97020.0,97002.0,0.3608]
[1736848078189,0.051557,97003.0,97002.0,0.3608]
[1736848078987,0.051561,96995.0,96994.0,0.3701]
[1736848080686,0.01392897,97007.0,96994.0,0.3701]
[1736848080892,0.051555,97008.0,97006.0,0.3608]
[1736848081489,0.01408532,97022.0,97007.0,0.3701]
[1736848081694,0.05155,97017.0,97014.0,0.3608]
[1736848081896,0.051551,97015.0,97014.0,0.3608]
[1736848082194,0.051555,97008.0,97006.0,0.001]
[1736848082491,0.051559,97000.0,96998.0,0.3701]
[1736848085195,0.052559,97000.0,96998.0,0.001]
[1736848086293,0.001,97000.0,96998.0,0.001]
[1736848086588,0.3608,97024.0,97000.0,0.3701]
[1736848086795,0.15298389,97010.0,97001.0,0.3701]
[1736848087087,0.051548,97021.0,97001.0,0.3701]
[1736848087289,0.3608,97023.0,97001.0,0.3701]
[1736848087290,0.05155,97017.0,97008.0,0.3608]
[1736848087495,0.3608,97044.0,97017.0,0.3608]
[1736848087690,0.051542,97031.0,97029.0,0.3608]
[1736848089195,0.052542,97031.0,97029.0,0.3618]
[1736848089397,0.052542,97031.0,97029.0,0.001]
[1736848089788,0.052542,97031.0,97029.0,0.002]
[1736848092692,0.001,97031.0,97029.0,0.002]
[1736848092887,0.051543,97030.0,97029.0,0.002]
[1736848096799,0.051543,97030.0,97029.0,0.001]
[1736848100211,0.051549,97019.0,97018.0,0.3701]
[1736848102207,0.15298389,97028.0,97021.0,0.3701]
[1736848102405,0.15298389,97028.0,97020.0,0.3701]
[1736848102406,0.051545,97027.0,97020.0,0.3701]
[1736848103001,0.15298389,97030.0,97020.0,0.3701]
[1736848103197,0.051549,97019.0,97018.0,0.3701]
[1736848105104,0.051545,97027.0,97017.0,0.3608]
[1736848105303,0.051554,97008.0,97007.0,0.3701]
[1736848105703,0.051557,97004.0,97003.0,0.17917988]
[1736848106203,0.051557,97004.0,96999.0,0.3701]
[1736848106204,0.051559,97000.0,96999.0,0.3701]
[1736848106397,0.05156,96997.0,96996.0,0.17917988]
[1736848106802,0.05156,96997.0,96996.0,0.12435768]
[1736848106994,0.05156,96997.0,96983.0,0.66075314]
[1736848107200,0.05156,96997.0,96983.0,0.65943314]
[1736848107201,0.051567,96984.0,96983.0,0.65943314]
[1736848108203,0.051567,96984.0,96983.0,0.3608]
[1736848109300,0.051573,96973.0,96964.0,0.3701]
[1736848109503,0.051579,96962.0,96961.0,0.36234711]
[1736848110103,0.051579,96962.0,96961.0,0.73244711]
[1736848110304,0.051576,96967.0,96963.0,0.3701]
[1736848110508,0.051577,96966.0,96963.0,0.3701]
[1736848110805,0.051578,96964.0,96963.0,0.3701]
[1736848111016,0.051578,96963.0,96961.0,0.36234711]
[1736848111309,0.052579,96962.0,96961.0,0.74144711]
[1736848111510,0.052579,96962.0,96961.0,0.37134711]
[1736848112214,0.051579,96962.0,96961.0,0.36234711]
[1736848113910,0.051579,96962.0,96961.0,0.36434711]
[1736848114214,0.06875117,96962.0,96961.0,0.36434711]
[1736848114509,0.06875117,96962.0,96961.0,0.36334711]
[1736848115015,0.051579,96962.0,96961.0,0.36334711]
[1736848116017,0.051579,96962.0,96961.0,0.73344711]
[1736848118108,0.051579,96962.0,96952.0,0.37771907]
[1736848118109,0.3608,96962.0,96952.0,0.37771907]
[1736848118312,0.3608,96953.0,96936.0,0.3701]
[1736848118514,0.051594,96934.0,96933.0,0.3608]
[1736848118712,0.051589,96943.0,96925.0,0.00154746]
[1736848118918,0.051601,96920.0,96919.0,0.3701]
[1736848119413,0.00154804,96940.0,96920.0,0.3701]
[1736848119719,0.00154804,96940.0,96938.0,0.3608]
[1736848120016,0.00154804,96940.0,96939.0,0.3701]
[1736848120622,0.051577,96965.0,96950.0,0.051585]
[1736848120810,0.051577,96965.0,96964.0,0.7309]
[1736848122121,0.056577,96965.0,96964.0,0.3701]
[1736848122319,0.056577,96965.0,96964.0,0.2361]
[1736848122516,0.051589,96943.0,96942.0,0.3608]
[1736848122816,0.051593,96935.0,96934.0,0.00154755]
[1736848123917,0.051593,96935.0,96934.0,0.36234755]
[1736848124108,0.15298389,96944.0,96934.0,0.36234755]
[1736848124313,0.15298389,96944.0,96934.0,0.36434755]
[1736848124314,0.051591,96939.0,96934.0,0.36434755]
[1736848124513,0.17021771,96944.0,96934.0,0.36434755]
[1736848124713,0.051591,96939.0,96934.0,0.36434755]
[1736848125222,0.051591,96939.0,96935.0,0.1612]
[1736848126113,0.05159,96942.0,96935.0,0.1612]
[1736848126314,0.051582,96957.0,96946.0,0.051587]
[1736848126522,0.051582,96957.0,96956.0,0.3608]
[1736848127125,0.00154758,96959.0,96956.0,0.3608]
[1736848127420,0.00154758,96959.0,96957.0,0.051582]
[1736848127621,0.00154758,96959.0,96958.0,0.051581]
[1736848127813,0.051572,96975.0,96959.0,0.3701]
[1736848128013,0.051572,96975.0,96956.0,0.3618]
[1736848128014,0.01725671,96979.0,96974.0,0.3608]
[1736848128725,0.15298389,97000.0,96974.0,0.412372]
[1736848128726,0.051567,96986.0,96974.0,0.412372]
[1736848129021,0.051567,96986.0,96984.0,0.3608]
[1736848129217,0.15298389,97000.0,96984.0,0.3608]
[1736848129515,0.051567,96985.0,96984.0,0.3608]
[1736848130218,0.051563,96992.0,96984.0,0.3608]
[1736848130720,0.001,96985.0,96984.0,0.3608]
[1736848131414,0.004,96992.0,96984.0,0.3608]
[1736848132008,0.051562,96995.0,96984.0,0.3608]
[1736848132217,0.17092573,97000.0,96992.0,0.3608]
[1736848132218,0.01794184,97000.0,96992.0,0.3608]
[1736848132421,0.412358,97002.0,96992.0,0.3608]
[1736848132622,0.051558,97002.0,96992.0,0.3608]
[1736848133524,0.051559,97000.0,96992.0,0.3608]
[1736848134623,0.01731295,97006.0,96995.0,0.3701]
[1736848134816,0.00154723,97006.0,97003.0,0.3608]
[1736848135019,0.051557,97004.0,97003.0,0.3608]
[1736848135426,0.00154586,97067.0,97010.0,0.3701]
[1736848135730,0.0174182,97067.0,97066.0,0.3608]
[1736848135927,0.05306886,97067.0,97066.0,0.3608]
[1736848136227,0.05306886,97067.0,97066.0,0.36066271]
[1736848136431,0.06926426,97067.0,97066.0,0.36066271]
[1736848137320,0.01774126,97067.0,97066.0,0.73176271]
[1736848137628,0.02274126,97067.0,97066.0,0.73076271]
[1736848138228,0.00654586,97067.0,97066.0,0.73076271]
[1736848140828,0.00654586,97067.0,97066.0,0.36066271]
[1736848144639,0.25298389,97100.0,97066.0,0.41218671]
[1736848144839,0.051511,97090.0,97087.0,0.3608]
[1736848145236,0.25298389,97100.0,97069.0,0.3701]
[1736848145237,0.3608,97095.0,97078.0,0.3608]
[1736848145438,0.15298389,97090.0,97087.0,0.3608]
[1736848145641,0.3608,97096.0,97069.0,0.3701]
[1736848145939,0.051518,97077.0,97066.0,0.3608]
[1736848146140,0.051519,97076.0,97074.0,0.3608]
[1736848147153,0.051523,97067.0,97066.0,0.3608]
[1736848147662,0.05152,97073.0,97066.0,0.3608]
[1736848147860,0.15298389,97080.0,97066.0,0.3608]
[1736848148163,0.051523,97067.0,97066.0,0.3608]
[1736848148363,0.05152,97074.0,97066.0,0.3608]
[1736848148958,0.051521,97072.0,97066.0,0.3608]
[1736848149465,0.051521,97071.0,97066.0,0.3608]
[1736848150060,0.051523,97068.0,97066.0,0.3608]
[1736848152858,0.3608,97078.0,97066.0,0.3608]
[1736848153064,0.051523,97067.0,97066.0,0.3608]
[1736848153364,0.01612514,97085.0,97067.0,0.3701]
[1736848153566,0.3608,97114.0,97066.0,0.3618]
[1736848153567,0.3608,97137.0,97136.0,0.051487]
[1736848153769,0.39548875,97149.0,97136.0,1.5]
[1736848153968,0.39548875,97149.0,97147.0,0.051481]
[1736848154263,0.00154517,97174.0,97167.0,0.05147]
[1736848154463,0.00154517,97174.0,97150.0,0.102958]
[1736848154464,0.051447,97211.0,97179.0,0.01]
[1736848154767,0.15298389,97210.0,97204.0,0.3608]
[1736848154967,0.05145,97206.0,97204.0,0.01]
[1736848155269,0.3608,97207.0,97187.0,0.01]
[1736848155462,0.001,97205.0,97190.0,0.3608]
[1736848155663,0.001,97206.0,97204.0,0.3708]
[1736848155868,0.15298389,97210.0,97205.0,0.3701]
[1736848156061,0.051439,97225.0,97219.0,0.01]
[1736848156258,0.3608,97229.0,97220.0,0.3608]
[1736848156464,0.3608,97229.0,97220.0,0.3618]
[1736848156661,0.0158669,97229.0,97220.0,0.3618]
[1736848156861,0.15298389,97230.0,97220.0,0.3618]
[1736848157056,0.15298389,97230.0,97229.0,0.01]
[1736848157267,0.15298389,97240.0,97229.0,0.7409]
[1736848157469,0.01731398,97245.0,97244.0,0.01]
[1736848157672,0.23506093,97250.0,97244.0,0.01]
[1736848157969,0.3608,97258.0,97256.0,0.01]
[1736848157970,0.01618904,97258.0,97256.0,0.01]
[1736848158166,0.3608,97268.0,97267.0,0.01]
[1736848158361,0.051426,97251.0,97250.0,0.3701]
[1736848158563,0.051426,97251.0,97250.0,0.29651269]
[1736848158871,0.051431,97240.0,97239.0,0.31996497]
[1736848159269,0.051431,97240.0,97211.0,0.29551269]
[1736848159270,0.051436,97231.0,97212.0,0.3608]
[1736848159468,0.051452,97202.0,97201.0,0.3608]
[1736848159986,1.21464,97202.0,97164.0,0.3608]
[1736848160160,1.21464,97202.0,97152.0,0.3608]
[1736848160161,0.3608,97173.0,97152.0,0.3608]
[1736848160473,0.051458,97191.0,97152.0,0.3608]
[1736848160474,0.051473,97161.0,97160.0,0.3608]
[1736848160774,0.051475,97158.0,97157.0,0.23890651]
[1736848161673,0.23506093,97162.0,97157.0,0.23890651]
[1736848161969,0.23506093,97162.0,97161.0,0.3608]
[1736848162174,0.05147,97167.0,97161.0,0.3608]
[1736848162472,0.23506093,97171.0,97161.0,0.3608]
[1736848162473,0.051472,97163.0,97161.0,0.3608]
[1736848162981,0.051475,97158.0,97157.0,0.23890651]
[1736848163174,0.412275,97158.0,97157.0,0.23890651]
[1736848163775,0.051479,97150.0,97149.0,0.29863314]
[1736848164566,0.412279,97150.0,97149.0,0.29863314]
[1736848164966,0.412279,97150.0,97149.0,0.2876565]
[1736848165569,0.3608,97150.0,97128.0,0.3608]
[1736848165767,0.051483,97143.0,97128.0,0.3608]
[1736848165969,0.19583989,97150.0,97128.0,0.3608]
[1736848166167,0.005,97158.0,97149.0,0.3608]
[1736848166369,0.051475,97158.0,97157.0,0.3608]
[1736848166669,0.002,97150.0,97149.0,0.3608]
[1736848167870,0.051485,97139.0,97137.0,0.3608]
[1736848168073,0.051481,97147.0,97137.0,0.3608]
[1736848168471,0.23506093,97160.0,97137.0,0.3608]
[1736848168472,0.01681507,97159.0,97137.0,0.3608]
[1736848168667,0.231876,97160.0,97137.0,0.3608]
[1736848168867,0.051484,97142.0,97137.0,0.3608]
[1736848169066,0.051478,97152.0,97137.0,0.3608]
[1736848169266,0.051475,97159.0,97151.0,0.3608]
[1736848169477,0.051475,97158.0,97151.0,0.3608]
[1736848169777,0.051476,97157.0,97151.0,0.3608]
[1736848169978,0.051474,97160.0,97151.0,0.3608]
[1736848170180,0.00154474,97163.0,97159.0,0.3608]
[1736848170474,0.051474,97160.0,97159.0,0.3608]
[1736848170673,0.051479,97151.0,97150.0,0.3608]
[1736848171273,0.002,97157.0,97150.0,0.3608]
[1736848171469,0.051475,97158.0,97150.0,0.3608]
[1736848171672,0.051475,97158.0,97154.0,0.3608]
[1736848171871,0.051459,97189.0,97165.0,0.051471]
[1736848172178,0.051458,97189.0,97188.0,0.3608]
[1736848172878,0.051464,97179.0,97178.0,0.3608]
[1736848173273,0.051464,97179.0,97156.0,0.3608]
[1736848173573,0.05147,97168.0,97156.0,0.3608]
[1736848173878,0.05147,97168.0,97167.0,0.3608]
[1736848174573,0.051466,97174.0,97164.0,0.3608]
[1736848174780,0.051471,97165.0,97164.0,0.3608]
[1736848176674,0.052471,97165.0,97164.0,0.3608]
[1736848177770,0.3608,97220.0,97164.0,0.6608]
[1736848177970,0.051446,97213.0,97188.0,0.3608]
[1736848178282,0.051458,97190.0,97188.0,0.3608]
[1736848179584,0.051464,97179.0,97178.0,0.3608]
[1736848180979,0.055464,97179.0,97178.0,0.3608]
[1736848182582,0.055464,97179.0,97178.0,0.3618]
[1736848183182,0.051464,97179.0,97178.0,0.3618]
[1736848183480,0.055464,97179.0,97178.0,0.3618]
[1736848183681,0.004,97179.0,97178.0,0.3618]
[1736848186280,0.055464,97179.0,97178.0,0.3618]
[1736848186680,0.053464,97179.0,97178.0,0.3608]
[1736848186882,0.3608,97241.0,97180.0,0.39843869]
[1736848187084,0.051431,97240.0,97239.0,0.3608]
[1736848189480,0.053431,97240.0,97239.0,0.3618]
[1736848192089,0.002,97240.0,97239.0,0.3618]
[1736848193087,0.00154308,97260.0,97239.0,0.3618]
[1736848193291,0.05296408,97260.0,97259.0,0.3608]
[1736848194986,0.051421,97260.0,97259.0,0.3608]
[1736848195699,0.051431,97240.0,97239.0,0.3608]
[1736848196087,0.051431,97242.0,97239.0,0.3608]
[1736848196695,0.00154305,97260.0,97240.0,0.29551269]
[1736848196996,0.02046549,97293.0,97283.0,0.051409]
[1736848197195,0.00154231,97328.0,97276.0,0.29551269]
[1736848197196,0.051394,97311.0,97292.0,0.7216]
[1736848197394,0.02107452,97305.0,97292.0,0.7216]
[1736848197593,0.00154231,97328.0,97294.0,0.29551269]
[1736848197795,0.00154231,97328.0,97324.0,0.3608]
[1736848197992,0.00154231,97328.0,97321.0,0.3608]
[1736848198203,0.051391,97317.0,97311.0,0.3608]
[1736848198391,0.00154231,97328.0,97311.0,0.3608]
[1736848198692,0.051388,97324.0,97320.0,0.3608]
[1736848198892,0.00154231,97328.0,97320.0,0.3608]
[1736848199084,0.051388,97322.0,97320.0,0.3608]
[1736848199287,0.051388,97322.0,97311.0,0.3608]
[1736848199288,0.00154231,97328.0,97311.0,0.3618]
[1736848199486,0.051386,97326.0,97311.0,0.3618]
[1736848199693,0.00154231,97328.0,97311.0,0.3618]
[1736848199999,0.051393,97313.0,97311.0,0.3608]
[1736848201392,0.001,97312.0,97311.0,0.3608]
[1736848201592,0.051407,97287.0,97286.0,0.3608]
[1736848202596,0.051414,97273.0,97272.0,0.3608]
[1736848203209,0.051414,97273.0,97237.0,0.3435]
[1736848203210,0.051421,97259.0,97253.0,0.3608]
[1736848203395,0.051421,97259.0,97258.0,0.23263258]
[1736848203598,0.3608,97302.0,97258.0,0.89443258]
[1736848203794,0.5532,97343.0,97286.0,0.3608]
[1736848203795,0.051407,97287.0,97286.0,0.3608]
[1736848204296,0.05294638,97293.0,97286.0,0.3608]
[1736848204498,0.00154238,97293.0,97286.0,0.3608]
[1736848204695,0.051406,97288.0,97286.0,0.3608]
[1736848206305,0.051406,97288.0,97286.0,0.3618]
[1736848207301,0.051406,97288.0,97286.0,0.001]
[1736848207495,0.051413,97275.0,97274.0,0.3608]
[1736848207696,0.59586093,97290.0,97274.0,0.3608]
[1736848207896,0.00154238,97293.0,97289.0,0.3608]
[1736848208104,0.051405,97291.0,97289.0,0.3608]
[1736848208299,0.3608,97315.0,97290.0,0.3608]
[1736848208500,0.05139,97319.0,97305.0,0.3608]
[1736848208694,0.23506093,97320.0,97305.0,0.3608]
[1736848209000,0.3608,97325.0,97305.0,0.3608]
[1736848209200,0.00154195,97345.0,97329.0,0.051384]
[1736848209402,0.00154195,97345.0,97340.0,0.3608]
[1736848209808,0.3608,97389.0,97341.0,0.001]
[1736848210103,0.3608,97389.0,97369.0,0.3608]
[1736848210298,0.11568186,97384.0,97367.0,0.3608]
[1736848210501,0.06432586,97384.0,97367.0,0.3608]
[1736848210808,0.051356,97383.0,97367.0,0.3608]
[1736848211107,0.06432586,97384.0,97368.0,0.001]
[1736848211296,0.06432586,97384.0,97357.0,0.3608]
[1736848211496,0.3608,97372.0,97357.0,0.3608]
[1736848212009,0.051368,97360.0,97346.0,0.3608]
[1736848212206,0.3608,97372.0,97346.0,0.3608]
[1736848212397,0.23506093,97370.0,97346.0,0.3608]
[1736848212602,0.051375,97348.0,97346.0,0.3608]
[1736848213610,0.051374,97348.0,97346.0,0.001]
[1736848213909,0.051387,97324.0,97323.0,0.3608]
[1736848214208,0.02053881,97356.0,97313.0,0.35835976]
[1736848214209,0.3608,97328.0,97313.0,0.35835976]
[1736848214507,0.00154158,97344.0,97327.0,0.3608]
[1736848214712,0.00154158,97344.0,97343.0,0.3608]
[1736848214901,0.00154158,97344.0,97343.0,0.7216]
[1736848215211,0.00154158,97344.0,97343.0,0.773977]
[1736848215504,0.05136,97376.0,97348.0,0.051374]
[1736848215701,0.05136,97376.0,97343.0,1.0226]
[1736848215702,0.61724586,97384.0,97369.0,0.3608]
[1736848216097,0.051359,97378.0,97369.0,0.3608]
[1736848216303,0.3608,97376.0,97359.0,0.3608]
[1736848216507,0.23506093,97370.0,97359.0,0.3608]
[1736848216908,0.3608,97376.0,97359.0,0.3608]
[1736848217306,0.05136,97375.0,97349.0,0.3608]
[1736848217705,0.051371,97354.0,97349.0,0.3608]
[1736848217906,0.23606093,97370.0,97349.0,0.3608]
[1736848218106,0.051372,97353.0,97349.0,0.3608]
[1736848218914,0.051373,97351.0,97349.0,0.3608]
[1736848220110,0.3608,97363.0,97349.0,0.3618]
[1736848220311,0.051371,97355.0,97349.0,0.3618]
[1736848220510,0.3608,97368.0,97349.0,0.3608]
[1736848220716,0.051373,97350.0,97349.0,0.3618]
[1736848220904,0.051373,97350.0,97349.0,0.001]
[1736848221113,0.051382,97335.0,97333.0,0.36234132]
[1736848221912,0.3608,97338.0,97315.0,0.3608]
[1736848222118,0.051384,97330.0,97315.0,0.3608]
[1736848222317,0.31177855,97338.0,97316.0,0.001]
[1736848222621,0.051382,97334.0,97316.0,0.001]
[1736848222812,0.051381,97336.0,97316.0,0.001]
[1736848223117,0.051383,97333.0,97326.0,0.3608]
[1736848223519,0.001,97335.0,97327.0,0.001]
[1736848223709,0.001,97335.0,97334.0,0.3608]
[1736848223908,0.051377,97343.0,97334.0,0.3608]
[1736848224104,0.051378,97342.0,97334.0,0.3618]
[1736848224313,0.02029385,97362.0,97334.0,0.3618]
[1736848224314,0.051364,97367.0,97345.0,0.051376]
[1736848224514,0.051364,97367.0,97340.0,0.3608]
[1736848224515,0.051363,97370.0,97354.0,0.3608]
[1736848224710,0.051359,97377.0,97367.0,0.3608]
[1736848224913,0.05136,97376.0,97367.0,0.3608]
[1736848225117,0.23506093,97380.0,97368.0,0.001]
[1736848225314,0.051364,97369.0,97367.0,0.3608]
[1736848225505,0.3608,97379.0,97362.0,0.3608]
[1736848225713,0.051376,97345.0,97344.0,0.3608]
[1736848226619,0.23506093,97360.0,97338.0,0.3608]
[1736848226620,0.051379,97339.0,97338.0,0.3608]
[1736848228419,0.051368,97362.0,97338.0,0.3618]
[1736848228621,0.051372,97353.0,97352.0,0.3608]
[1736848230022,0.051379,97339.0,97338.0,0.3608]
[1736848233828,0.051366,97364.0,97338.0,0.3618]
[1736848234027,0.051372,97352.0,97351.0,0.3608]
[1736848234624,0.051368,97361.0,97339.0,0.00132]
[1736848234817,0.051378,97342.0,97332.0,0.3608]
[1736848235017,0.051376,97346.0,97341.0,0.3608]
[1736848235223,0.58015581,97365.0,97341.0,0.3608]
[1736848235224,0.051374,97350.0,97341.0,0.3608]
[1736848235421,0.051374,97350.0,97349.0,0.3608]
[1736848235728,0.051378,97341.0,97340.0,0.3608]
[1736848236634,0.05138,97337.0,97331.0,0.3608]
[1736848236833,0.051381,97336.0,97331.0,0.3608]
[1736848237021,0.051383,97332.0,97331.0,0.3608]
[1736848237327,0.23506093,97350.0,97331.0,0.3608]
[1736848237632,0.051374,97350.0,97331.0,0.3608]
[1736848237931,0.05138,97337.0,97331.0,0.3608]
[1736848238322,0.051381,97335.0,97331.0,0.3608]
[1736848238720,0.051374,97350.0,97331.0,0.3608]
[1736848238920,0.051374,97350.0,97321.0,0.3618]
[1736848238921,0.051377,97344.0,97321.0,0.3608]
[1736848239130,0.051388,97323.0,97319.0,0.29470479]
[1736848239423,0.3608,97335.0,97309.0,0.35835976]
[1736848239424,0.051389,97321.0,97309.0,0.35835976]
[1736848239730,0.3608,97310.0,97309.0,0.01900485]
[1736848239918,0.3608,97310.0,97291.0,0.3608]
[1736848240119,0.051392,97315.0,97301.0,0.3608]
[1736848240426,0.3618,97320.0,97301.0,0.3608]
[1736848240427,0.051399,97302.0,97301.0,0.3608]
[1736848240727,0.05139,97319.0,97301.0,0.3608]
[1736848240930,0.38626279,97320.0,97301.0,0.3608]
[1736848241128,0.051394,97311.0,97301.0,0.3608]
[1736848241332,0.38626279,97320.0,97301.0,0.3608]
[1736848241827,0.051396,97308.0,97301.0,0.3608]
[1736848242327,0.3608,97316.0,97301.0,0.3608]
[1736848242529,0.051385,97328.0,97302.0,0.001]
[1736848242829,0.051392,97315.0,97310.0,0.3608]
[1736848243025,0.36234225,97330.0,97310.0,0.3608]
[1736848243922,0.051394,97312.0,97310.0,0.3608]
[1736848244325,0.38831391,97330.0,97310.0,0.3608]
[1736848244524,0.051388,97323.0,97318.0,0.3608]
[1736848244731,0.05139,97319.0,97318.0,0.3608]
[1736848245033,0.05139,97319.0,97303.0,0.1687]
[1736848245226,0.051398,97304.0,97303.0,0.1687]
[1736848245535,0.051399,97301.0,97300.0,0.3608]
[1736848245828,0.59586093,97320.0,97292.0,0.3608]
[1736848245829,0.3608,97309.0,97292.0,0.3608]
[1736848246032,0.051403,97293.0,97292.0,0.3608]
[1736848246828,0.051409,97282.0,97281.0,0.3608]
[1736848247019,0.051403,97294.0,97281.0,0.3608]
[1736848247226,0.051401,97299.0,97282.0,0.001]
[1736848247424,0.051401,97299.0,97281.0,0.3618]
[1736848247425,0.051401,97299.0,97281.0,0.3608]
[1736848247723,0.051406,97289.0,97281.0,0.3608]
[1736848247925,0.051401,97298.0,97281.0,0.3608]
[1736848248233,0.051414,97274.0,97273.0,0.3608]
[1736848248435,0.3608,97290.0,97272.0,0.3608]
[1736848248726,0.05141,97281.0,97272.0,0.3608]
[1736848248925,0.00154249,97294.0,97272.0,0.3608]
[1736848249124,0.23506093,97290.0,97281.0,0.002]
[1736848249331,0.051409,97282.0,97281.0,0.002]
[1736848250227,0.412209,97282.0,97281.0,0.002]
[1736848250629,0.051415,97271.0,97270.0,0.50269644]
[1736848251727,0.051425,97252.0,97228.0,0.3608]
[1736848251933,0.05143,97243.0,97228.0,0.3608]
[1736848252233,0.05143,97243.0,97223.0,0.0154056]
[1736848252827,0.3,97243.0,97223.0,0.0154056]
[1736848253031,0.051437,97230.0,97223.0,0.0154056]
[1736848253236,0.051437,97230.0,97224.0,0.00132124]
[1736848253534,0.051439,97225.0,97224.0,0.00132124]
[1736848253729,0.051439,97225.0,97223.0,0.01308338]
[1736848254432,0.3608,97224.0,97223.0,0.01308338]
[1736848254936,0.6618,97224.0,97223.0,0.01308338]
[1736848255431,0.68739263,97224.0,97223.0,0.01308338]
[1736848255826,0.3608,97224.0,97223.0,0.01408338]
[1736848256035,0.55312,97240.0,97223.0,0.37488338]
[1736848256232,0.051433,97237.0,97223.0,0.37488338]
[1736848256930,0.051434,97236.0,97223.0,0.37488338]
[1736848257437,0.55312,97240.0,97231.0,0.3608]
[1736848257637,0.3608,97253.0,97231.0,0.3608]
[1736848257933,0.051422,97258.0,97244.0,0.3608]
[1736848258237,0.051422,97258.0,97253.0,0.3608]
[1736848258427,0.55312,97261.0,97243.0,0.3608]
[1736848258632,0.051425,97252.0,97243.0,0.3608]
[1736848258836,0.05143,97244.0,97235.0,0.3608]
[1736848259034,0.051431,97241.0,97235.0,0.3608]
[1736848259535,0.051432,97240.0,97235.0,0.3608]
[1736848260129,0.051433,97237.0,97235.0,0.3608]
[1736848260636,0.051438,97228.0,97224.0,0.1719]
[1736848260834,0.3608,97245.0,97224.0,0.1719]
[1736848261027,0.3608,97256.0,97236.0,0.3608]
[1736848261233,0.051426,97251.0,97246.0,0.3608]
[1736848261534,0.02293545,97256.0,97236.0,0.3608]
[1736848261736,0.00154308,97263.0,97236.0,0.3608]
[1736848261930,0.02471441,97263.0,97236.0,0.3608]
[1736848262132,0.051429,97245.0,97236.0,0.3608]
[1736848262335,0.051432,97240.0,97236.0,0.3608]
[1736848262530,0.051428,97247.0,97236.0,0.3608]
[1736848263133,0.3608,97255.0,97236.0,0.3608]
[1736848264043,0.3608,97255.0,97236.0,0.3618]
[1736848264434,0.3608,97255.0,97236.0,0.3608]